[Event "Titled Tuesday Blitz May 30 Late 2023"]
[White "Silva Rosas, Natalia"]
[Black "Rodriguez Santiago, Jaime"]
[WhiteFideId "3000575"]
[BlackFideId "3100898"]
[WhiteElo "1651"]
[BlackElo "2025"]
[Result "1-0"]
[Round "05"]
[TimeControl "180+2"]
[Date "2023.05.31"]
[WhiteClock "0:00:02"]
[BlackClock "0:00:05"]

1. e4 {[%clk 0:03:00]}  c6 {[%clk 0:02:59]} 2. d3 {[%clk 0:03:00]}  d5 {[%clk 0:02:59]} 3. Nd2 {[%clk 0:03:00]}  dxe4 {[%clk 0:02:58]} 4. dxe4 {[%clk 0:03:01]}  e5 {[%clk 0:02:55]} 5. Ngf3 {[%clk 0:03:01]}  Bd6 {[%clk 0:02:54]} 6. g3 {[%clk 0:03:01]}  Bg4 {[%clk 0:02:51]} 7. h3 {[%clk 0:03:00]}  Bh5 {[%clk 0:02:51]} 8. Bg2 {[%clk 0:02:59]}  Nf6 {[%clk 0:02:50]} 9. O-O {[%clk 0:02:59]}  O-O {[%clk 0:02:49]} 10. c3 {[%clk 0:02:58]}  Bc7 {[%clk 0:02:48]} 11. Re1 {[%clk 0:02:56]}  Qe7 {[%clk 0:02:47]} 12. Qe2 {[%clk 0:02:55]}  Nbd7 {[%clk 0:02:44]} 13. b4 {[%clk 0:02:50]}  a5 {[%clk 0:02:30]} 14. a3 {[%clk 0:02:44]}  b5 {[%clk 0:02:20]} 15. Nf1 {[%clk 0:02:35]}  Nb6 {[%clk 0:02:09]} 16. N1h2 {[%clk 0:02:28]}  Nc4 {[%clk 0:02:05]} 17. Bg5 {[%clk 0:02:12]}  h6 {[%clk 0:02:01]} 18. Bxf6 {[%clk 0:02:09]}  Qxf6 {[%clk 0:02:02]} 19. Ng4 {[%clk 0:02:01]}  Qe7 {[%clk 0:01:56]} 20. Nh4 {[%clk 0:01:49]}  Bb6 {[%clk 0:01:23]} 21. Nf5 {[%clk 0:01:45]}  Qa7 {[%clk 0:01:13]} 22. bxa5 {[%clk 0:01:30]}  Nxa5 {[%clk 0:01:06]} 23. Rf1 {[%clk 0:01:25]}  Bxg4 {[%clk 0:00:45]} 24. Qxg4 {[%clk 0:01:22]}  f6 {[%clk 0:00:45]} 25. Nxh6+ {[%clk 0:01:22]}  Kh7 {[%clk 0:00:45]} 26. Nf5 {[%clk 0:01:18]}  Rh8 {[%clk 0:00:40]} 27. Nh4 {[%clk 0:01:03]}  Kg8 {[%clk 0:00:39]} 28. Qe6+ {[%clk 0:01:01]}  Kh7 {[%clk 0:00:33]} 29. Qf5+ {[%clk 0:01:01]}  Kg8 {[%clk 0:00:31]} 30. Qe6+ {[%clk 0:01:00]}  Qf7 {[%clk 0:00:31]} 31. Qxf7+ {[%clk 0:00:54]}  Kxf7 {[%clk 0:00:32]} 32. Nf5 {[%clk 0:00:52]}  Nc4 {[%clk 0:00:30]} 33. h4 {[%clk 0:00:36]}  Rhd8 {[%clk 0:00:29]} 34. Rfd1 {[%clk 0:00:27]}  Rxd1+ {[%clk 0:00:20]} 35. Rxd1 {[%clk 0:00:28]}  Rd8 {[%clk 0:00:18]} 36. Rxd8 {[%clk 0:00:26]}  Bxd8 {[%clk 0:00:19]} 37. Ne3 {[%clk 0:00:25]}  Be7 {[%clk 0:00:19]} 38. Nxc4 {[%clk 0:00:21]}  bxc4 {[%clk 0:00:20]} 39. a4 {[%clk 0:00:18]}  Ba3 {[%clk 0:00:19]} 40. Bf1 {[%clk 0:00:15]}  Bb2 {[%clk 0:00:20]} 41. Bxc4+ {[%clk 0:00:15]}  Ke7 {[%clk 0:00:20]} 42. a5 {[%clk 0:00:13]}  Bxc3 {[%clk 0:00:20]} 43. a6 {[%clk 0:00:13]}  Bd4 {[%clk 0:00:20]} 44. Kf1 {[%clk 0:00:12]}  Ba7 {[%clk 0:00:20]} 45. Ke2 {[%clk 0:00:12]}  Kd6 {[%clk 0:00:21]} 46. Kd3 {[%clk 0:00:11]}  Kc5 {[%clk 0:00:22]} 47. f4 {[%clk 0:00:09]}  Kb4 {[%clk 0:00:19]} 48. f5 {[%clk 0:00:07]}  Kc5 {[%clk 0:00:18]} 49. g4 {[%clk 0:00:07]}  Kd6 {[%clk 0:00:17]} 50. g5 {[%clk 0:00:07]}  Ke7 {[%clk 0:00:17]} 51. g6 {[%clk 0:00:06]}  Kd7 {[%clk 0:00:12]} 52. h5 {[%clk 0:00:06]}  Kc7 {[%clk 0:00:12]} 53. h6 {[%clk 0:00:05]}  gxh6 {[%clk 0:00:07]} 54. g7 {[%clk 0:00:03]}  h5 {[%clk 0:00:07]} 55. g8=Q {[%clk 0:00:02]}  h4 {[%clk 0:00:08]} 56. Qh7+ {[%clk 0:00:02]}  Kb6 {[%clk 0:00:06]} 57. Qxh4 {[%clk 0:00:02]}  Kc5 {[%clk 0:00:05]} 58. Qe1 {[%clk 0:00:02]} 1-0


[Site "https://www.chess.com"]

[Event "Titled Tuesday Blitz May 30 Late 2023"]
[White "Hartikainen, Jarmo"]
[Black "OPQRC"]
[WhiteFideId "503134"]
[WhiteElo "2102"]
[BlackElo "2556"]
[Result "0-1"]
[Round "05"]
[TimeControl "180+2"]
[Date "2023.05.31"]
[WhiteClock "0:00:01"]
[BlackClock "0:00:14"]

1. e4 {[%clk 0:03:00]}  c5 {[%clk 0:02:57]} 2. c3 {[%clk 0:03:00]}  Nf6 {[%clk 0:02:56]} 3. e5 {[%clk 0:03:00]}  Nd5 {[%clk 0:02:56]} 4. d4 {[%clk 0:02:59]}  cxd4 {[%clk 0:02:55]} 5. Nf3 {[%clk 0:02:57]}  d6 {[%clk 0:02:52]} 6. cxd4 {[%clk 0:02:53]}  dxe5 {[%clk 0:02:49]} 7. Nxe5 {[%clk 0:02:44]}  e6 {[%clk 0:02:42]} 8. Nc3 {[%clk 0:02:13]}  Be7 {[%clk 0:02:33]} 9. Bd3 {[%clk 0:02:08]}  Nd7 {[%clk 0:02:26]} 10. Nxd5 {[%clk 0:01:40]}  exd5 {[%clk 0:02:25]} 11. O-O {[%clk 0:01:23]}  O-O {[%clk 0:02:16]} 12. Nxd7 {[%clk 0:01:06]}  Bxd7 {[%clk 0:02:15]} 13. Qh5 {[%clk 0:01:05]}  g6 {[%clk 0:02:14]} 14. Qxd5 {[%clk 0:01:05]}  Bc6 {[%clk 0:01:51]} 15. Qxd8 {[%clk 0:01:00]}  Raxd8 {[%clk 0:01:52]} 16. Be3 {[%clk 0:01:00]}  Bf6 {[%clk 0:01:52]} 17. d5 {[%clk 0:00:18]}  Bxd5 {[%clk 0:01:49]} 18. Bxa7 {[%clk 0:00:18]}  Bxg2 {[%clk 0:01:49]} 19. Kxg2 {[%clk 0:00:17]}  Rxd3 {[%clk 0:01:49]} 20. b4 {[%clk 0:00:16]}  Bxa1 {[%clk 0:01:48]} 21. Rxa1 {[%clk 0:00:16]}  Ra8 {[%clk 0:01:45]} 22. Bc5 {[%clk 0:00:15]}  Rda3 {[%clk 0:01:45]} 23. Re1 {[%clk 0:00:14]}  Rxa2 {[%clk 0:01:45]} 24. Re7 {[%clk 0:00:14]}  Rb8 {[%clk 0:01:32]} 25. Bd6 {[%clk 0:00:14]}  Rd8 {[%clk 0:01:28]} 26. Bc5 {[%clk 0:00:15]}  h5 {[%clk 0:01:03]} 27. Rxb7 {[%clk 0:00:14]}  Rc2 {[%clk 0:01:02]} 28. Re7 {[%clk 0:00:12]}  h4 {[%clk 0:00:57]} 29. Re4 {[%clk 0:00:11]}  g5 {[%clk 0:00:53]} 30. Rg4 {[%clk 0:00:10]}  Rd5 {[%clk 0:00:52]} 31. Be7 {[%clk 0:00:09]}  Rf5 {[%clk 0:00:46]} 32. Bxg5 {[%clk 0:00:09]}  Rcxf2+ {[%clk 0:00:36]} 33. Kg1 {[%clk 0:00:07]}  Kf8 {[%clk 0:00:14]} 34. Bxh4 {[%clk 0:00:06]}  Rb2 {[%clk 0:00:14]} 35. Rc4 {[%clk 0:00:05]}  Rb5 {[%clk 0:00:13]} 36. Rc8+ {[%clk 0:00:05]}  Kg7 {[%clk 0:00:13]} 37. Rc4 {[%clk 0:00:04]}  R5xb4 {[%clk 0:00:11]} 38. Rxb4 {[%clk 0:00:02]}  Rxb4 {[%clk 0:00:12]} 39. Bg3 {[%clk 0:00:03]}  Kg6 {[%clk 0:00:12]} 40. Kg2 {[%clk 0:00:03]}  Ra4 {[%clk 0:00:13]} 41. Kf3 {[%clk 0:00:04]}  f5 {[%clk 0:00:13]} 42. Bf4 {[%clk 0:00:03]}  Ra3+ {[%clk 0:00:14]} 43. Kf2 {[%clk 0:00:04]}  Kh5 {[%clk 0:00:14]} 44. Be5 {[%clk 0:00:02]}  Rb3 {[%clk 0:00:14]} 45. Bd6 {[%clk 0:00:03]}  Kg4 {[%clk 0:00:15]} 46. Kg2 {[%clk 0:00:01]}  f4 {[%clk 0:00:15]} 47. Be5 {[%clk 0:00:01]}  Ra3 {[%clk 0:00:13]} 48. Kf2 {[%clk 0:00:02]}  Ra2+ {[%clk 0:00:13]} 49. Kf1 {[%clk 0:00:02]}  Kf3 {[%clk 0:00:13]} 50. Ke1 {[%clk 0:00:02]}  Rxh2 {[%clk 0:00:13]} 51. Bd6 {[%clk 0:00:01]}  Rh1+ {[%clk 0:00:14]} 52. Kd2 {[%clk 0:00:01]}  Rh2+ {[%clk 0:00:14]} 0-1


[Site "https://www.chess.com"]

[Event "Titled Tuesday Blitz May 30 Late 2023"]
[White "Schut, Han"]
[Black "Womacka, Mathias"]
[WhiteFideId "1005561"]
[BlackFideId "4611390"]
[WhiteElo "2024"]
[BlackElo "2377"]
[Result "0-1"]
[Round "05"]
[TimeControl "180+2"]
[Date "2023.05.31"]
[WhiteClock "0:00:09"]
[BlackClock "0:02:18"]

1. e4 {[%clk 0:03:00]}  c5 {[%clk 0:02:59]} 2. Nf3 {[%clk 0:03:00]}  d6 {[%clk 0:02:59]} 3. d4 {[%clk 0:02:59]}  cxd4 {[%clk 0:03:00]} 4. Nxd4 {[%clk 0:03:00]}  Nf6 {[%clk 0:03:00]} 5. f3 {[%clk 0:03:01]}  e6 {[%clk 0:02:58]} 6. c4 {[%clk 0:02:59]}  Be7 {[%clk 0:02:57]} 7. Nc3 {[%clk 0:02:59]}  O-O {[%clk 0:02:57]} 8. Be3 {[%clk 0:02:59]}  Nbd7 {[%clk 0:02:57]} 9. Qd2 {[%clk 0:02:59]}  d5 {[%clk 0:02:56]} 10. cxd5 {[%clk 0:02:50]}  exd5 {[%clk 0:02:57]} 11. exd5 {[%clk 0:02:40]}  Nb6 {[%clk 0:02:56]} 12. Be2 {[%clk 0:01:44]}  Nfxd5 {[%clk 0:02:54]} 13. Nxd5 {[%clk 0:01:44]}  Nxd5 {[%clk 0:02:52]} 14. Nc2 {[%clk 0:01:17]}  Bf5 {[%clk 0:02:23]} 15. Bd4 {[%clk 0:00:25]}  Bxc2 {[%clk 0:02:20]} 16. Qxc2 {[%clk 0:00:22]}  Nb4 {[%clk 0:02:21]} 17. Qe4 {[%clk 0:00:11]}  Qxd4 {[%clk 0:02:18]} 18. Qxe7 {[%clk 0:00:09]} 0-1


[Site "https://www.chess.com"]

[Event "Titled Tuesday Blitz May 30 Late 2023"]
[White "Papp, Petra"]
[Black "Mendez Machado, Andre"]
[WhiteFideId "739049"]
[BlackFideId "6603793"]
[WhiteElo "2259"]
[BlackElo "1984"]
[Result "1-0"]
[Round "05"]
[TimeControl "180+2"]
[Date "2023.05.31"]
[WhiteClock "0:01:33"]
[BlackClock "0:00:02"]

1. d4 {[%clk 0:02:57]}  Nf6 {[%clk 0:02:59]} 2. c4 {[%clk 0:02:56]}  e6 {[%clk 0:03:00]} 3. g3 {[%clk 0:02:56]}  d5 {[%clk 0:02:58]} 4. Nf3 {[%clk 0:02:56]}  Be7 {[%clk 0:02:58]} 5. Bg2 {[%clk 0:02:56]}  O-O {[%clk 0:02:59]} 6. O-O {[%clk 0:02:56]}  dxc4 {[%clk 0:02:59]} 7. Qc2 {[%clk 0:02:53]}  a6 {[%clk 0:03:00]} 8. a4 {[%clk 0:02:53]}  Nc6 {[%clk 0:02:59]} 9. Qxc4 {[%clk 0:02:52]}  Na5 {[%clk 0:03:00]} 10. Qc2 {[%clk 0:02:52]}  b6 {[%clk 0:03:01]} 11. Bf4 {[%clk 0:02:51]}  Nd5 {[%clk 0:02:56]} 12. Bd2 {[%clk 0:02:51]}  Bb7 {[%clk 0:02:51]} 13. Bxa5 {[%clk 0:02:47]}  bxa5 {[%clk 0:02:52]} 14. Rc1 {[%clk 0:02:46]}  Rc8 {[%clk 0:02:50]} 15. Nbd2 {[%clk 0:02:41]}  c5 {[%clk 0:02:50]} 16. dxc5 {[%clk 0:02:40]}  Bxc5 {[%clk 0:02:49]} 17. Qb3 {[%clk 0:02:39]}  Ba8 {[%clk 0:02:33]} 18. Nc4 {[%clk 0:02:36]}  Qf6 {[%clk 0:01:32]} 19. Nxa5 {[%clk 0:02:28]}  Rb8 {[%clk 0:01:09]} 20. Qc2 {[%clk 0:02:23]}  Rfc8 {[%clk 0:01:09]} 21. Qd3 {[%clk 0:02:15]}  Nb4 {[%clk 0:00:43]} 22. Qd2 {[%clk 0:02:15]}  Nd5 {[%clk 0:00:25]} 23. Nc4 {[%clk 0:02:09]}  Rb4 {[%clk 0:00:19]} 24. e3 {[%clk 0:02:03]}  h5 {[%clk 0:00:19]} 25. Ne1 {[%clk 0:01:55]}  Rcb8 {[%clk 0:00:16]} 26. Nd3 {[%clk 0:01:54]}  Be7 {[%clk 0:00:09]} 27. Nxb4 {[%clk 0:01:53]}  Bxb4 {[%clk 0:00:10]} 28. Qe2 {[%clk 0:01:52]}  a5 {[%clk 0:00:09]} 29. Na3 {[%clk 0:01:51]}  Bd6 {[%clk 0:00:05]} 30. Nc4 {[%clk 0:01:50]}  Bb4 {[%clk 0:00:05]} 31. Na3 {[%clk 0:01:49]}  Bd6 {[%clk 0:00:05]} 32. Nb5 {[%clk 0:01:49]}  Be5 {[%clk 0:00:05]} 33. Rab1 {[%clk 0:01:47]}  h4 {[%clk 0:00:04]} 34. Qg4 {[%clk 0:01:37]}  hxg3 {[%clk 0:00:04]} 35. hxg3 {[%clk 0:01:38]}  Bxb2 {[%clk 0:00:03]} 36. Nd4 {[%clk 0:01:36]}  Bxd4 {[%clk 0:00:01]} 37. Rxb8+ {[%clk 0:01:35]}  Kh7 {[%clk 0:00:02]} 38. Qh5+ {[%clk 0:01:33]} 1-0


[Site "https://www.chess.com"]

[Event "Titled Tuesday Blitz May 30 Late 2023"]
[White "dodoucb"]
[Black "Horokoskii"]
[WhiteElo "2338"]
[BlackElo "2127"]
[Result "1-0"]
[Round "05"]
[TimeControl "180+2"]
[Date "2023.05.31"]
[WhiteClock "0:00:06"]
[BlackClock "0:00:03"]

1. e4 {[%clk 0:02:59]}  e6 {[%clk 0:02:47]} 2. d4 {[%clk 0:02:58]}  d5 {[%clk 0:02:36]} 3. Bd3 {[%clk 0:02:59]}  c5 {[%clk 0:02:32]} 4. exd5 {[%clk 0:02:58]}  Qxd5 {[%clk 0:02:27]} 5. Nf3 {[%clk 0:02:29]}  Nc6 {[%clk 0:01:53]} 6. dxc5 {[%clk 0:02:17]}  Bxc5 {[%clk 0:01:54]} 7. O-O {[%clk 0:02:15]}  Nf6 {[%clk 0:01:48]} 8. Nc3 {[%clk 0:02:14]}  Qh5 {[%clk 0:01:47]} 9. Bf4 {[%clk 0:01:45]}  O-O {[%clk 0:01:38]} 10. Re1 {[%clk 0:01:44]}  b6 {[%clk 0:01:26]} 11. Ne4 {[%clk 0:01:38]}  Nxe4 {[%clk 0:01:24]} 12. Bxe4 {[%clk 0:01:36]}  Bb7 {[%clk 0:01:24]} 13. Qd7 {[%clk 0:01:35]}  Rfd8 {[%clk 0:00:58]} 14. Qxb7 {[%clk 0:01:24]}  Na5 {[%clk 0:00:57]} 15. Qxa8 {[%clk 0:01:22]}  Rxa8 {[%clk 0:00:58]} 16. Bxa8 {[%clk 0:01:22]}  Qf5 {[%clk 0:00:46]} 17. Bg3 {[%clk 0:01:18]}  g5 {[%clk 0:00:44]} 18. Be4 {[%clk 0:01:13]}  Qf6 {[%clk 0:00:37]} 19. c3 {[%clk 0:01:05]}  Nc4 {[%clk 0:00:36]} 20. b3 {[%clk 0:00:51]}  Nd6 {[%clk 0:00:33]} 21. Be5 {[%clk 0:00:17]}  Qh6 {[%clk 0:00:26]} 22. Bd3 {[%clk 0:00:12]}  g4 {[%clk 0:00:22]} 23. Nd4 {[%clk 0:00:12]}  Qh4 {[%clk 0:00:18]} 24. Rad1 {[%clk 0:00:10]}  h5 {[%clk 0:00:16]} 25. b4 {[%clk 0:00:10]}  Bxd4 {[%clk 0:00:15]} 26. Bxd4 {[%clk 0:00:11]}  Nf5 {[%clk 0:00:15]} 27. Bxf5 {[%clk 0:00:10]}  exf5 {[%clk 0:00:16]} 28. Be5 {[%clk 0:00:11]}  Qg5 {[%clk 0:00:15]} 29. g3 {[%clk 0:00:10]}  h4 {[%clk 0:00:15]} 30. Bf4 {[%clk 0:00:10]}  Qf6 {[%clk 0:00:13]} 31. Rd3 {[%clk 0:00:11]}  h3 {[%clk 0:00:13]} 32. Red1 {[%clk 0:00:09]}  Qc6 {[%clk 0:00:13]} 33. f3 {[%clk 0:00:09]}  a5 {[%clk 0:00:11]} 34. a3 {[%clk 0:00:08]}  axb4 {[%clk 0:00:10]} 35. axb4 {[%clk 0:00:09]}  b5 {[%clk 0:00:11]} 36. Kf2 {[%clk 0:00:08]}  Qb6+ {[%clk 0:00:11]} 37. Be3 {[%clk 0:00:08]}  Qc6 {[%clk 0:00:11]} 38. Bd4 {[%clk 0:00:09]}  Kh7 {[%clk 0:00:09]} 39. Re1 {[%clk 0:00:09]}  Kg6 {[%clk 0:00:08]} 40. Re5 {[%clk 0:00:08]}  f6 {[%clk 0:00:08]} 41. Re7 {[%clk 0:00:05]}  Qc4 {[%clk 0:00:06]} 42. Rde3 {[%clk 0:00:05]}  Qa2+ {[%clk 0:00:05]} 43. Re2 {[%clk 0:00:06]}  Qb1 {[%clk 0:00:05]} 44. R7e6 {[%clk 0:00:05]}  Qh1 {[%clk 0:00:05]} 45. Rxf6+ {[%clk 0:00:05]}  Kh5 {[%clk 0:00:04]} 46. Rxf5+ {[%clk 0:00:05]}  Kg6 {[%clk 0:00:04]} 47. Rf6+ {[%clk 0:00:05]}  Kh7 {[%clk 0:00:04]} 48. Re7+ {[%clk 0:00:06]}  Kg8 {[%clk 0:00:05]} 49. Re8+ {[%clk 0:00:05]}  Kh7 {[%clk 0:00:04]} 50. Re7+ {[%clk 0:00:05]}  Kg8 {[%clk 0:00:05]} 51. Ke3 {[%clk 0:00:04]}  Qe1+ {[%clk 0:00:04]} 52. Kf4 {[%clk 0:00:05]}  Qxe7 {[%clk 0:00:05]} 53. fxg4 {[%clk 0:00:05]}  Qc7+ {[%clk 0:00:06]} 54. Kg5 {[%clk 0:00:05]}  Qc4 {[%clk 0:00:04]} 55. Rg6+ {[%clk 0:00:05]}  Kf7 {[%clk 0:00:04]} 56. Rf6+ {[%clk 0:00:05]}  Kg7 {[%clk 0:00:04]} 57. Kh4 {[%clk 0:00:06]}  Qe2 {[%clk 0:00:03]} 58. Kxh3 {[%clk 0:00:06]}  Qd3 {[%clk 0:00:04]} 59. Rf3+ {[%clk 0:00:06]}  Qxd4 {[%clk 0:00:03]} 60. cxd4 {[%clk 0:00:06]} 1-0


[Site "https://www.chess.com"]

[Event "Titled Tuesday Blitz May 30 Late 2023"]
[White "Sarkar, Justin"]
[Black "Ricaurte Lopez, Juan Carlos"]
[WhiteFideId "2010011"]
[BlackFideId "3600327"]
[WhiteElo "2168"]
[BlackElo "2200"]
[Result "1-0"]
[Round "05"]
[TimeControl "180+2"]
[Date "2023.05.31"]
[WhiteClock "0:00:46"]
[BlackClock "0:00:16"]

1. d4 {[%clk 0:02:49]}  d5 {[%clk 0:02:58]} 2. c4 {[%clk 0:02:48]}  dxc4 {[%clk 0:02:55]} 3. Nf3 {[%clk 0:02:47]}  c5 {[%clk 0:02:53]} 4. e4 {[%clk 0:02:34]}  cxd4 {[%clk 0:02:51]} 5. Qxd4 {[%clk 0:02:29]}  Qxd4 {[%clk 0:02:33]} 6. Nxd4 {[%clk 0:02:29]}  a6 {[%clk 0:02:28]} 7. Bxc4 {[%clk 0:02:28]}  e5 {[%clk 0:02:17]} 8. Nf3 {[%clk 0:02:26]}  Nc6 {[%clk 0:02:16]} 9. Nc3 {[%clk 0:02:23]}  Bb4 {[%clk 0:02:10]} 10. Bd2 {[%clk 0:02:18]}  Bxc3 {[%clk 0:02:03]} 11. Bxc3 {[%clk 0:02:18]}  f6 {[%clk 0:02:00]} 12. Ke2 {[%clk 0:02:02]}  Bg4 {[%clk 0:01:52]} 13. h3 {[%clk 0:01:58]}  Bxf3+ {[%clk 0:01:50]} 14. Kxf3 {[%clk 0:01:55]}  O-O-O {[%clk 0:01:48]} 15. Rhd1 {[%clk 0:01:51]}  Nge7 {[%clk 0:01:46]} 16. Ke3 {[%clk 0:01:47]}  Kc7 {[%clk 0:01:34]} 17. b4 {[%clk 0:01:35]}  Nd4 {[%clk 0:01:20]} 18. Bxd4 {[%clk 0:01:27]}  exd4+ {[%clk 0:01:20]} 19. Rxd4 {[%clk 0:01:27]}  Nc6 {[%clk 0:01:18]} 20. Rxd8 {[%clk 0:01:23]}  Rxd8 {[%clk 0:01:18]} 21. a3 {[%clk 0:01:23]}  Nd4 {[%clk 0:00:54]} 22. Rc1 {[%clk 0:01:20]}  Nc6 {[%clk 0:00:28]} 23. Bd5 {[%clk 0:01:17]}  Kb6 {[%clk 0:00:28]} 24. Bxc6 {[%clk 0:01:08]}  bxc6 {[%clk 0:00:26]} 25. a4 {[%clk 0:01:08]}  Rd6 {[%clk 0:00:21]} 26. f4 {[%clk 0:01:05]}  a5 {[%clk 0:00:21]} 27. bxa5+ {[%clk 0:01:03]}  Kxa5 {[%clk 0:00:21]} 28. Rc4 {[%clk 0:01:03]}  Kb6 {[%clk 0:00:20]} 29. e5 {[%clk 0:01:02]}  fxe5 {[%clk 0:00:19]} 30. fxe5 {[%clk 0:01:02]}  Rd5 {[%clk 0:00:19]} 31. Re4 {[%clk 0:00:49]}  Kc7 {[%clk 0:00:17]} 32. e6 {[%clk 0:00:49]}  Kd8 {[%clk 0:00:18]} 33. Rd4 {[%clk 0:00:49]}  Ke7 {[%clk 0:00:16]} 34. Rxd5 {[%clk 0:00:46]}  cxd5 {[%clk 0:00:16]} 35. a5 {[%clk 0:00:46]} 1-0


[Site "https://www.chess.com"]

[Event "Titled Tuesday Blitz May 30 Late 2023"]
[White "Makarian, Rudik"]
[Black "Vachier-Lagrave, Maxime"]
[WhiteFideId "44105681"]
[BlackFideId "623539"]
[WhiteElo "2461"]
[BlackElo "2723"]
[Result "1/2-1/2"]
[Round "06"]
[TimeControl "180+2"]
[Date "2023.05.31"]
[WhiteClock "0:00:05"]
[BlackClock "0:00:09"]

1. d4 {[%clk 0:03:00]}  Nf6 {[%clk 0:02:59]} 2. c4 {[%clk 0:03:01]}  e6 {[%clk 0:02:57]} 3. Nf3 {[%clk 0:03:01]}  d5 {[%clk 0:02:53]} 4. Nc3 {[%clk 0:03:02]}  Be7 {[%clk 0:02:48]} 5. Bf4 {[%clk 0:03:01]}  O-O {[%clk 0:02:47]} 6. e3 {[%clk 0:03:02]}  Nbd7 {[%clk 0:02:46]} 7. c5 {[%clk 0:03:02]}  Ne4 {[%clk 0:02:45]} 8. Nxe4 {[%clk 0:03:03]}  dxe4 {[%clk 0:02:45]} 9. Ne5 {[%clk 0:03:04]}  Nxe5 {[%clk 0:02:41]} 10. Bxe5 {[%clk 0:03:05]}  Bd7 {[%clk 0:02:41]} 11. Be2 {[%clk 0:02:56]}  Bc6 {[%clk 0:02:38]} 12. O-O {[%clk 0:02:56]}  Qd7 {[%clk 0:02:33]} 13. Qc2 {[%clk 0:02:54]}  f6 {[%clk 0:02:28]} 14. Bg3 {[%clk 0:02:53]}  f5 {[%clk 0:02:28]} 15. b4 {[%clk 0:02:43]}  Bd5 {[%clk 0:02:22]} 16. b5 {[%clk 0:02:42]}  c6 {[%clk 0:02:22]} 17. Rab1 {[%clk 0:02:39]}  Rf7 {[%clk 0:02:17]} 18. Rb2 {[%clk 0:02:36]}  Bg5 {[%clk 0:02:16]} 19. bxc6 {[%clk 0:02:26]}  bxc6 {[%clk 0:02:14]} 20. Rfb1 {[%clk 0:02:21]}  f4 {[%clk 0:02:09]} 21. Rb8+ {[%clk 0:01:53]}  Rxb8 {[%clk 0:02:08]} 22. Rxb8+ {[%clk 0:01:54]}  Rf8 {[%clk 0:02:09]} 23. Rxf8+ {[%clk 0:01:53]}  Kxf8 {[%clk 0:02:10]} 24. Bxf4 {[%clk 0:01:54]}  Bxf4 {[%clk 0:02:08]} 25. exf4 {[%clk 0:01:55]}  Qb7 {[%clk 0:02:07]} 26. a3 {[%clk 0:01:36]}  Qc7 {[%clk 0:02:04]} 27. Qd2 {[%clk 0:01:32]}  Qb8 {[%clk 0:02:03]} 28. h4 {[%clk 0:01:23]}  g6 {[%clk 0:01:49]} 29. h5 {[%clk 0:01:16]}  Kg7 {[%clk 0:01:44]} 30. hxg6 {[%clk 0:01:12]}  hxg6 {[%clk 0:01:44]} 31. Bg4 {[%clk 0:01:08]}  Kf6 {[%clk 0:01:40]} 32. Qe3 {[%clk 0:01:00]}  Qb2 {[%clk 0:01:31]} 33. Kh2 {[%clk 0:00:59]}  a5 {[%clk 0:01:31]} 34. Bd1 {[%clk 0:00:52]}  Qb1 {[%clk 0:01:25]} 35. Be2 {[%clk 0:00:49]}  Qb2 {[%clk 0:01:22]} 36. g4 {[%clk 0:00:46]}  a4 {[%clk 0:01:10]} 37. g5+ {[%clk 0:00:46]}  Kg7 {[%clk 0:01:05]} 38. Bg4 {[%clk 0:00:40]}  Kf7 {[%clk 0:00:58]} 39. Kg1 {[%clk 0:00:37]}  Qb1+ {[%clk 0:00:56]} 40. Kg2 {[%clk 0:00:37]}  Qb2 {[%clk 0:00:56]} 41. Kg1 {[%clk 0:00:27]}  Ke7 {[%clk 0:00:56]} 42. Qh3 {[%clk 0:00:20]}  Qc1+ {[%clk 0:00:55]} 43. Kh2 {[%clk 0:00:18]}  Qxf4+ {[%clk 0:00:54]} 44. Qg3 {[%clk 0:00:18]}  Qxg5 {[%clk 0:00:49]} 45. Qc7+ {[%clk 0:00:18]}  Kf8 {[%clk 0:00:49]} 46. Kg3 {[%clk 0:00:15]}  e3 {[%clk 0:00:44]} 47. f4 {[%clk 0:00:15]}  Qf6 {[%clk 0:00:36]} 48. Qe5 {[%clk 0:00:12]}  Kf7 {[%clk 0:00:19]} 49. Qxe3 {[%clk 0:00:12]}  Qh8 {[%clk 0:00:19]} 50. Bh3 {[%clk 0:00:08]}  Qh5 {[%clk 0:00:18]} 51. Bg4 {[%clk 0:00:05]}  Qh1 {[%clk 0:00:18]} 52. Qe5 {[%clk 0:00:04]}  Qc1 {[%clk 0:00:09]} 53. Qc7+ {[%clk 0:00:04]}  Kf6 {[%clk 0:00:09]} 54. Qe5+ {[%clk 0:00:04]}  Kf7 {[%clk 0:00:10]} 55. Kh4 {[%clk 0:00:04]}  Qxa3 {[%clk 0:00:07]} 56. Qc7+ {[%clk 0:00:03]}  Kf6 {[%clk 0:00:06]} 57. Qd8+ {[%clk 0:00:03]}  Kf7 {[%clk 0:00:07]} 58. Qd7+ {[%clk 0:00:03]}  Kf6 {[%clk 0:00:07]} 59. Qd8+ {[%clk 0:00:03]}  Kf7 {[%clk 0:00:07]} 60. Kg5 {[%clk 0:00:04]}  Qg3 {[%clk 0:00:07]} 61. Qd7+ {[%clk 0:00:04]}  Kf8 {[%clk 0:00:07]} 62. Qd8+ {[%clk 0:00:05]}  Kf7 {[%clk 0:00:08]} 63. Qc7+ {[%clk 0:00:05]}  Kf8 {[%clk 0:00:08]} 64. Qd8+ {[%clk 0:00:05]}  Kf7 {[%clk 0:00:09]} 1/2-1/2


[Site "https://www.chess.com"]

[Event "Titled Tuesday Blitz May 30 Late 2023"]
[White "Hakobyan, Aram"]
[Black "Maurizzi, Marc`Andria"]
[WhiteFideId "13306677"]
[BlackFideId "36083534"]
[WhiteElo "2584"]
[BlackElo "2421"]
[Result "1-0"]
[Round "06"]
[TimeControl "180+2"]
[Date "2023.05.31"]
[WhiteClock "0:00:47"]
[BlackClock "0:00:18"]

1. d4 {[%clk 0:03:00]}  d5 {[%clk 0:02:57]} 2. c4 {[%clk 0:03:01]}  e6 {[%clk 0:02:57]} 3. Nc3 {[%clk 0:03:00]}  a6 {[%clk 0:02:53]} 4. cxd5 {[%clk 0:02:59]}  exd5 {[%clk 0:02:53]} 5. Nf3 {[%clk 0:03:00]}  Nf6 {[%clk 0:02:53]} 6. Bg5 {[%clk 0:03:00]}  Be6 {[%clk 0:02:52]} 7. e3 {[%clk 0:02:59]}  Nbd7 {[%clk 0:02:53]} 8. Bd3 {[%clk 0:02:59]}  Bd6 {[%clk 0:02:53]} 9. h3 {[%clk 0:02:55]}  c6 {[%clk 0:02:52]} 10. Bf4 {[%clk 0:02:53]}  Qc7 {[%clk 0:02:52]} 11. Qd2 {[%clk 0:02:53]}  O-O {[%clk 0:02:52]} 12. O-O {[%clk 0:02:54]}  Rfe8 {[%clk 0:02:52]} 13. Rfe1 {[%clk 0:02:53]}  h6 {[%clk 0:02:52]} 14. Rac1 {[%clk 0:02:52]}  Nh5 {[%clk 0:02:37]} 15. Bxd6 {[%clk 0:02:52]}  Qxd6 {[%clk 0:02:38]} 16. Na4 {[%clk 0:02:51]}  Nhf6 {[%clk 0:02:37]} 17. Nc5 {[%clk 0:02:45]}  Nxc5 {[%clk 0:02:36]} 18. dxc5 {[%clk 0:02:45]}  Qc7 {[%clk 0:02:37]} 19. Nd4 {[%clk 0:02:44]}  Bd7 {[%clk 0:02:37]} 20. b4 {[%clk 0:02:43]}  Re5 {[%clk 0:02:37]} 21. a4 {[%clk 0:02:32]}  Rae8 {[%clk 0:02:37]} 22. Nf3 {[%clk 0:02:23]}  R5e7 {[%clk 0:02:33]} 23. Qb2 {[%clk 0:02:21]}  Ne4 {[%clk 0:02:30]} 24. Qd4 {[%clk 0:01:46]}  Re6 {[%clk 0:02:28]} 25. b5 {[%clk 0:01:39]}  axb5 {[%clk 0:02:27]} 26. axb5 {[%clk 0:01:40]}  Rg6 {[%clk 0:02:28]} 27. Nh4 {[%clk 0:01:26]}  Rf6 {[%clk 0:02:25]} 28. bxc6 {[%clk 0:01:14]}  bxc6 {[%clk 0:02:20]} 29. f4 {[%clk 0:01:09]}  Qd8 {[%clk 0:02:12]} 30. Nf3 {[%clk 0:01:09]}  g5 {[%clk 0:00:55]} 31. Ne5 {[%clk 0:01:05]}  gxf4 {[%clk 0:00:53]} 32. Bxe4 {[%clk 0:01:04]}  fxe3 {[%clk 0:00:18]} 33. Rxe3 {[%clk 0:00:58]}  Bf5 {[%clk 0:00:16]} 34. Rg3+ {[%clk 0:00:53]}  Kf8 {[%clk 0:00:16]} 35. Bxf5 {[%clk 0:00:51]}  Rxf5 {[%clk 0:00:17]} 36. Nxc6 {[%clk 0:00:47]}  Qf6 {[%clk 0:00:17]} 37. Qxf6 {[%clk 0:00:47]}  Rxf6 {[%clk 0:00:18]} 1-0


[Site "https://www.chess.com"]